fUSD/lending_fUSD_20250308
["ID","MTS","AMOUNT","RATE_DAILY","PERIOD"]
[355649423,1741434593283,-500.0,8.219e-05,2]
[355649424,1741434593305,-500.0,8.219e-05,2]
[355649425,1741434593328,-500.0,8.219e-05,2]
[355649426,1741434593350,-557.96,8.219e-05,2]
[355649427,1741434593373,-500.0,8.219e-05,2]
[355649428,1741434593395,-500.0,8.219e-05,2]
[355649429,1741434593416,-500.0,8.219e-05,2]
[355649430,1741434593438,-500.0,8.219e-05,2]
[355649431,1741434593460,-512.81,8.219e-05,2]
[355649432,1741434593482,-500.0,8.219e-05,2]
[355649433,1741434593506,-500.0,8.219e-05,2]
[355649434,1741434593528,-500.0,8.219e-05,2]
[355649435,1741434593550,-655.59,8.219e-05,2]
[355649436,1741434593572,-500.0,8.219e-05,2]
[355649437,1741434593594,-617.79,8.219e-05,2]
[355649438,1741434593615,-500.0,8.219e-05,2]
[355649439,1741434593636,-550.04,8.219e-05,2]
[355649440,1741434593657,-645.08,8.219e-05,2]
[355649441,1741434593680,-500.0,8.219e-05,2]
[355649442,1741434593701,-500.0,8.219e-05,2]
[355649443,1741434593723,-520.35,8.219e-05,2]
[355649444,1741434593743,-202.0115342,8.219e-05,2]
[355649445,1741434593764,-500.0,8.219e-05,2]
[355649446,1741434593786,-500.0,8.219e-05,2]
[355649447,1741434593808,-500.0,8.219e-05,2]
[355649448,1741434593829,-500.0,8.219e-05,2]
[355649449,1741434593849,-500.0,8.219e-05,2]
[355649450,1741434593870,-500.0,8.219e-05,2]
[355649451,1741434593892,-500.0,8.219e-05,2]
[355649452,1741434593913,-676.97,8.219e-05,2]
[355649453,1741434593933,-547.71,8.219e-05,2]
[355649454,1741434593954,-989.93,8.219e-05,2]
[355649455,1741434593975,-645.27,8.219e-05,2]
[355649456,1741434593997,-500.0,8.219e-05,2]
[355649457,1741434594019,-1034.92,8.219e-05,2]
[355649458,1741434594040,-1665.83,8.219e-05,2]
[355649459,1741434594061,-958.86,8.219e-05,2]
[355649460,1741434594083,-500.0,8.219e-05,2]
[355649461,1741434594104,-1856.47,8.219e-05,2]
[355649462,1741434594126,-526.14,8.219e-05,2]
[355649463,1741434594148,-608.49,8.219e-05,2]
[355649464,1741434594169,-674.25,8.219e-05,2]
[355649465,1741434594191,-794.7,8.219e-05,2]
[355649466,1741434594212,-552.84,8.219e-05,2]
[355649467,1741434594233,-595.17,8.219e-05,2]
[355649468,1741434594255,-581.26,8.219e-05,2]
[355649469,1741434594277,-1010.64,8.219e-05,2]
[355649470,1741434594299,-755.21,8.219e-05,2]
[355649471,1741434594322,-500.0,8.219e-05,2]
[355649472,1741434594342,-690.73,8.219e-05,2]
[355649473,1741434594364,-628.1,8.219e-05,2]
[355649474,1741434594386,-573.22,8.219e-05,2]
[355649475,1741434594408,-500.0,8.219e-05,2]
[355649476,1741434594430,-500.0,8.219e-05,2]
[355649477,1741434594450,-500.0,8.219e-05,2]
[355649478,1741434594471,-518.54,8.219e-05,2]
[355649479,1741434594492,-500.0,8.219e-05,2]
[355649480,1741434594513,-869.44,8.219e-05,2]
[355649481,1741434594533,-500.0,8.219e-05,2]
[355649482,1741434594554,-683.49,8.219e-05,2]
[355649483,1741434594574,-500.0,8.219e-05,2]
[355649484,1741434594596,-500.46,8.219e-05,2]
[355649485,1741434594616,-627.13,8.219e-05,2]
[355649486,1741434594638,-1004.13,8.219e-05,2]
[355649487,1741434594658,-948.8,8.219e-05,2]
[355649488,1741434594679,-500.0,8.219e-05,2]
[355649489,1741434594700,-767.54,8.219e-05,2]
[355649490,1741434594721,-542.68,8.219e-05,2]
[355649491,1741434594744,-515.94,8.219e-05,2]
[355649492,1741434594764,-500.0,8.219e-05,2]
[355649493,1741434594785,-544.97,8.219e-05,2]
[355649494,1741434594806,-591.09,8.219e-05,2]
[355649495,1741434594826,-1174.44,8.219e-05,2]
[355649496,1741434594846,-500.0,8.219e-05,2]
[355649497,1741434594867,-942.91,8.219e-05,2]
[355649498,1741434594888,-566.2,8.219e-05,2]
[355649499,1741434594909,-620.08,8.219e-05,2]
[355649500,1741434594930,-713.91,8.219e-05,2]
[355649501,1741434594951,-526.17,8.219e-05,2]
[355649502,1741434594972,-500.0,8.219e-05,2]
[355649503,1741434594992,-500.0,8.219e-05,2]
[355649504,1741434595013,-583.95,8.219e-05,2]
[355649505,1741434595033,-505.68,8.219e-05,2]
[355649506,1741434595055,-686.06,8.219e-05,2]
[355649507,1741434595076,-500.0,8.219e-05,2]
[355649508,1741434595099,-500.0,8.219e-05,2]
[355649509,1741434595121,-500.0,8.219e-05,2]
[355649510,1741434595431,-500.0,8.219e-05,2]
[355649511,1741434595454,-500.0,8.219e-05,2]
[355649512,1741434595475,-830.07,8.219e-05,2]
[355649513,1741434595496,-500.0,8.219e-05,2]
[355649514,1741434595517,-415.22989218,8.219e-05,2]
[355649515,1741434595538,-732.55,8.219e-05,2]
[355649516,1741434595558,-500.0,8.219e-05,2]
[355649517,1741434595579,-570.2,8.219e-05,2]
[355649518,1741434595600,-547.81,8.219e-05,2]
[355649519,1741434595620,-675.13,8.219e-05,2]
[355649520,1741434595642,-628.44,8.219e-05,2]
[355649521,1741434595662,-553.98,8.219e-05,2]
[355649522,1741434595683,-601.22,8.219e-05,2]
[355649523,1741434595704,-815.13,8.219e-05,2]
[355649524,1741434595726,-509.79,8.219e-05,2]
[355649525,1741434595748,-500.0,8.219e-05,2]
[355649526,1741434595770,-500.0,8.219e-05,2]
[355649527,1741434595791,-1070.71,8.219e-05,2]
[355649528,1741434595813,-500.0,8.219e-05,2]
[355649529,1741434595835,-724.51,8.219e-05,2]
[355649530,1741434595856,-500.0,8.219e-05,2]
[355649531,1741434595878,-838.72,8.219e-05,2]
[355649532,1741434595899,-760.27,8.219e-05,2]
[355649533,1741434595920,-565.74,8.219e-05,2]
[355649534,1741434595941,-852.45,8.219e-05,2]
[355649535,1741434595961,-965.81,8.219e-05,2]
[355649536,1741434595983,-500.0,8.219e-05,2]
[355649537,1741434596003,-1131.99,8.219e-05,2]
[355649538,1741434596024,-500.0,8.219e-05,2]
[355649539,1741434596045,-500.0,8.219e-05,2]
[355649540,1741434596065,-820.55,8.219e-05,2]
[355649541,1741434596086,-500.0,8.219e-05,2]
[355649542,1741434596107,-500.0,8.219e-05,2]
[355649543,1741434596130,-500.0,8.219e-05,2]
[355649544,1741434596153,-500.0,8.219e-05,2]
[355649545,1741434596174,-956.94,8.219e-05,2]
[355649546,1741434596194,-731.04,8.219e-05,2]
[355649547,1741434596215,-500.0,8.219e-05,2]
[355649548,1741434596236,-500.0,8.219e-05,2]
[355649549,1741434596257,-678.92,8.219e-05,2]
[355649550,1741434596278,-500.0,8.219e-05,2]
[355649551,1741434596301,-500.0,8.219e-05,2]
[355649552,1741434596326,-723.57,8.219e-05,2]
[355649553,1741434596347,-684.72,8.219e-05,2]
[355649554,1741434596369,-575.34,8.219e-05,2]
[355649555,1741434596391,-500.0,8.219e-05,2]
[355649556,1741434596413,-500.0,8.219e-05,2]
[355649557,1741434596434,-513.58,8.219e-05,2]
[355649558,1741434596455,-1040.64,8.219e-05,2]
[355649559,1741434596476,-500.0,8.219e-05,2]
[355649560,1741434596497,-500.0,8.219e-05,2]
[355649561,1741434596518,-500.0,8.219e-05,2]
[355649562,1741434596540,-500.0,8.219e-05,2]
[355649563,1741434596560,-679.04,8.219e-05,2]
[355649564,1741434596581,-500.0,8.219e-05,2]
[355649565,1741434596601,-508.36,8.219e-05,2]
[355649566,1741434596622,-650.27,8.219e-05,2]
[355649567,1741434596644,-751.73,8.219e-05,2]
[355649568,1741434596664,-785.03,8.219e-05,2]
[355649569,1741434596684,-991.19,8.219e-05,2]
[355649570,1741434596704,-584.02,8.219e-05,2]
[355649571,1741434596725,-500.0,8.219e-05,2]
[355649572,1741434596745,-1256.93,8.219e-05,2]
[355649573,1741434596766,-500.0,8.219e-05,2]
[355649574,1741434596787,-500.0,8.219e-05,2]
[355649575,1741434596808,-785.86,8.219e-05,2]
[355649576,1741434596830,-1207.93,8.219e-05,2]
[355649577,1741434596852,-500.0,8.219e-05,2]
[355649578,1741434596873,-414.27074093,8.219e-05,2]
[355649579,1741434596897,-781.24,8.219e-05,2]
[355649580,1741434596918,-1167.85,8.219e-05,2]
[355649581,1741434596939,-3451.1,8.219e-05,2]
[355649582,1741434596960,-500.0,8.219e-05,2]
[355649583,1741434596982,-1105.66,8.219e-05,2]
[355649584,1741434597004,-742.73,8.219e-05,2]
[355649585,1741434597026,-500.0,8.219e-05,2]
[355649586,1741434597048,-1212.61,8.219e-05,2]
[355649587,1741434597071,-500.0,8.219e-05,2]
[355649588,1741434597093,-1202.55,8.219e-05,2]
[355649589,1741434597115,-151.23305025,8.219e-05,2]
[355649590,1741434597137,-160.0,8.219e-05,3]
[355649591,1741434597161,-500.0,8.219e-05,2]
[355649592,1741434597184,-500.0,8.219e-05,2]
[355649593,1741434597206,-500.0,8.219e-05,2]
[355649594,1741434597227,-760.48,8.219e-05,2]
[355649595,1741434597248,-500.0,8.219e-05,2]
[355649596,1741434597269,-500.0,8.219e-05,2]
[355649597,1741434597290,-536.71584897,8.219e-05,2]
[355649598,1741434597313,-1224.52,8.219e-05,2]
[355649599,1741434597335,-500.0,8.219e-05,2]
[355649600,1741434597357,-957.49,8.219e-05,2]
[355649601,1741434597379,-500.0,8.219e-05,2]
[355649602,1741434597402,-500.0,8.219e-05,2]
[355649603,1741434597425,-627.54,8.219e-05,2]
[355649604,1741434597447,-500.0,8.219e-05,2]
[355649605,1741434597467,-649.82,8.219e-05,2]
[355649606,1741434597488,-500.0,8.219e-05,2]
[355649607,1741434597509,-500.0,8.219e-05,2]
[355649608,1741434597530,-500.0,8.219e-05,2]
[355649609,1741434597550,-500.0,8.219e-05,2]
[355649610,1741434597570,-500.0,8.219e-05,2]
[355649611,1741434597591,-1048.63,8.219e-05,2]
[355649612,1741434597611,-4354.15,8.219e-05,2]
[355649613,1741434597632,-500.0,8.219e-05,2]
[355649614,1741434597655,-8829.0,8.219e-05,2]
[355649615,1741434597676,-500.0,8.219e-05,2]
[355649616,1741434597698,-651.8,8.219e-05,2]
[355649617,1741434597719,-651.8,8.219e-05,2]
[355649618,1741434597740,-1381.26,8.219e-05,2]
[355649619,1741434597760,-641.43,8.219e-05,2]
[355649620,1741434597782,-1128.68,8.219e-05,2]
[355649621,1741434597804,-2900.66,8.219e-05,2]
[355649622,1741434597825,-2124.71,8.219e-05,2]
[355649623,1741434597847,-500.0,8.219e-05,2]
[355649624,1741434597869,-2450.74,8.219e-05,2]
[355649625,1741434597892,-1055.53,8.219e-05,2]
[355649626,1741434597914,-500.0,8.219e-05,2]
[355649627,1741434597939,-1809.72,8.219e-05,2]
[355649628,1741434597967,-500.0,8.219e-05,2]
[355649629,1741434597994,-500.0,8.219e-05,2]
[355649630,1741434598017,-2590.04,8.219e-05,2]
[355649631,1741434598040,-1039.68,8.219e-05,2]
[355649632,1741434598065,-8730.63,8.219e-05,2]
[355649633,1741434598091,-500.0,8.219e-05,2]
[355649634,1741434598113,-1225.08,8.219e-05,2]
[355649635,1741434598137,-1363.01,8.219e-05,2]
[355649636,1741434598163,-500.0,8.219e-05,2]
[355649637,1741434598186,-1962.07,8.219e-05,2]
[355649638,1741434598209,-500.0,8.219e-05,2]
[355649639,1741434598231,-500.0,8.219e-05,2]
[355649640,1741434598259,-500.0,8.219e-05,2]
[355649641,1741434598282,-1515.47,8.219e-05,2]
[355649642,1741434598308,-500.0,8.219e-05,2]
[355649643,1741434598333,-892.88,8.219e-05,2]
[355649644,1741434598359,-855.18,8.219e-05,2]
[355649645,1741434598381,-773.61,8.219e-05,2]
[355649646,1741434598403,-1154.22,8.219e-05,2]
[355649647,1741434598424,-1681.79,8.219e-05,2]
[355649648,1741434598445,-2331.9,8.219e-05,2]
[355649649,1741434598466,-500.0,8.219e-05,2]
[355649650,1741434598489,-12136.91,8.219e-05,2]
[355649651,1741434598510,-500.0,8.219e-05,2]
[355649652,1741434598532,-6513.51,8.219e-05,2]
[355649653,1741434598554,-1959.6,8.219e-05,2]
[355649654,1741434598576,-500.0,8.219e-05,2]
[355649655,1741434598597,-1048.73,8.219e-05,2]
[355649656,1741434598618,-530.15,8.219e-05,2]
[355649657,1741434598639,-500.0,8.219e-05,2]
[355649658,1741434598663,-2911.91,8.219e-05,2]
[355649659,1741434598685,-656.69,8.219e-05,2]
[355649660,1741434598705,-1094.71,8.219e-05,2]
[355649661,1741434598727,-500.0,8.219e-05,2]
[355649662,1741434598748,-500.0,8.219e-05,2]
[355649663,1741434598769,-500.0,8.219e-05,2]
[355649664,1741434598790,-2230.92,8.219e-05,2]
[355649665,1741434598811,-720.12,8.219e-05,2]
[355649666,1741434598833,-2407.49,8.219e-05,2]
[355649667,1741434598854,-4024.07,8.219e-05,2]
[355649668,1741434598875,-500.0,8.219e-05,2]
[355649669,1741434598898,-2800.8,8.219e-05,2]
[355649670,1741434598921,-507.53,8.219e-05,2]
[355649671,1741434598944,-500.0,8.219e-05,2]
[355649672,1741434598966,-2368.15,8.219e-05,2]
[355649673,1741434598988,-839.25,8.219e-05,2]
[355649674,1741434599009,-890.03,8.219e-05,2]
[355649675,1741434599029,-24914.46,8.219e-05,2]
[355649676,1741434599051,-500.0,8.219e-05,2]
[355649677,1741434599073,-500.0,8.219e-05,2]
[355649678,1741434599094,-1625.83,8.219e-05,2]
[355649679,1741434599115,-2839.66,8.219e-05,2]
[355649680,1741434599137,-2033.19,8.219e-05,2]
[355649681,1741434599161,-613.97,8.219e-05,2]
[355649682,1741434599187,-1070.86,8.219e-05,2]
[355649683,1741434599212,-500.0,8.219e-05,2]
[355649684,1741434599237,-500.0,8.219e-05,2]
[355649685,1741434599262,-2137.55,8.219e-05,2]
[355649686,1741434599285,-559.77138152,8.219e-05,2]
[355649687,1741434599310,-1024.36,8.219e-05,2]
[355649688,1741434599334,-2661.3,8.219e-05,2]
[355649689,1741434599357,-582.02,8.219e-05,2]
[355649690,1741434599379,-3266.89,8.219e-05,2]
[355649691,1741434599404,-1374.35,8.219e-05,2]
[355649692,1741434599641,-1953.05,8.219e-05,2]
[355649693,1741434599670,-542.3,8.219e-05,2]
[355649694,1741434599695,-500.0,8.219e-05,2]
[355649695,1741434599718,-500.0,8.219e-05,2]
[355649696,1741434599741,-500.0,8.219e-05,2]
[355649697,1741434599763,-500.0,8.219e-05,2]
[355649698,1741434599785,-500.0,8.219e-05,2]
[355649699,1741434599807,-521.88,8.219e-05,2]
[355649700,1741434599829,-820.71,8.219e-05,2]
[355649701,1741434599852,-1860.39,8.219e-05,2]
[355649702,1741434599874,-3659.31,8.219e-05,2]
[355649703,1741434599897,-5523.0,8.219e-05,2]
[355649704,1741434599918,-616.94,8.219e-05,2]
[355649705,1741434599940,-4176.86,8.219e-05,2]
[355649706,1741434599963,-640.61,8.219e-05,2]
[355649707,1741434599985,-500.0,8.219e-05,2]
[355649708,1741434600008,-613.89110963,8.219e-05,2]
[355649709,1741434631596,-130.05889037,8.219e-05,2]
[355649710,1741434631606,-345.44072972,8.219e-05,2]
[355649711,1741434631649,-154.55927028,8.219e-05,2]
[355649712,1741434631659,-795.38269654,8.219e-05,2]
[355649713,1741434631671,-97.50730346,8.219e-05,2]
[355649714,1741434631680,-452.55072972,8.219e-05,2]
[355649715,1741434631692,-47.44927028,8.219e-05,2]
[355649716,1741434631701,-823.0,8.219e-05,2]
[355649717,1741434631711,-2097.10610279,8.219e-05,2]
[355649718,1741434631736,-705.77389721,8.219e-05,2]
[355649719,1741434631746,-500.0,8.219e-05,2]
[355649720,1741434631756,-7126.25,8.219e-05,2]
[355649721,1741434631765,-373.91516306,8.219e-05,2]
[355649722,1741434631777,-1050.0,8.219e-05,2]
[355649723,1741434631788,-269.33846256,8.219e-05,2]
[355649734,1741434632173,-186.75637438,8.219e-05,2]
[355649736,1741434632183,-1012.28002951,8.219e-05,2]
[355649738,1741434632195,-437.77997049,8.219e-05,2]
[355649740,1741434632205,-136.25061169,8.219e-05,2]
[355649742,1741434632216,-566.23938831,8.219e-05,2]
[355649745,1741434632225,-572.61,8.219e-05,2]
[355649748,1741434632235,-500.0,8.219e-05,2]
[355649751,1741434632243,-211.60061169,8.219e-05,2]
[355649754,1741434632255,-914.09130211,8.219e-05,2]
[355649757,1741434632266,-275.62899589,8.219e-05,2]
[355649772,1741434632368,-575.63909031,8.219e-05,2]
[355649774,1741434632378,-89.64640969,8.219e-05,2]
[355649778,1741434632402,-463.5345,8.219e-05,2]
[355649785,1741434637770,-1483.74909031,8.219e-05,2]
[355649786,1741434637780,-370.11001385,8.219e-05,2]
[355649787,1741434637825,-963.57998615,8.219e-05,2]
[355649788,1741434637836,-500.0,8.219e-05,2]
[355649789,1741434637846,-44.502616,8.219e-05,2]
[355649793,1741434639771,-455.497384,8.219e-05,2]
[355649794,1741434639780,-2624.79258234,8.219e-05,2]
[355649795,1741434640037,-552.21874002,8.219e-05,2]
[355649812,1741434642758,-179.56867764,8.219e-05,2]
[355649813,1741434642768,-500.0,8.219e-05,2]
[355649814,1741434642778,-500.0,8.219e-05,2]
[355649815,1741434642787,-1030.2,8.219e-05,2]
[355649816,1741434642796,-1310.33432636,8.219e-05,2]
[355649817,1741434642864,-2004.6266328,8.219e-05,2]
[355649828,1741434650977,-28.84904084,8.219e-05,2]
[355649829,1741434650988,-1071.91,8.219e-05,2]
[355649830,1741434650998,-1787.1,8.219e-05,2]
[355649831,1741434651008,-500.0,8.219e-05,2]
[355649832,1741434651018,-500.0,8.219e-05,2]
[355649833,1741434651028,-500.0,8.219e-05,2]
[355649834,1741434651038,-1307.92,8.219e-05,2]
[355649835,1741434651048,-230.56780512,8.219e-05,2]
[355649836,1741434652406,1768.22695407,8.01e-05,2]
[355649837,1741434659327,1327.79939671,8.01e-05,2]
[355649845,1741434840701,23900.0,7.614e-05,2]
[355649846,1741434974144,158.03,7.584e-05,2]
[355649847,1741434974543,158.03,8.039e-05,2]
[355649848,1741435013579,209.48,8.081e-05,2]
[355649849,1741435126807,201.89,7.58e-05,2]
[355649853,1741435560200,103816.0,8e-05,2]
[355649861,1741435644436,168.24,7.796e-05,2]
[355649864,1741435658270,700.0,7.9e-05,2]
[355649865,1741435660387,1400.0,8e-05,2]
[355649879,1741435831925,-722.54233573,8.1e-05,2]
[355649880,1741435832215,-286.45766427,8.1e-05,2]
[355649881,1741435832226,-400.40321572,8.119e-05,2]
[355649882,1741435832254,-2914.78248428,8.119e-05,2]
[355649883,1741435832264,-150.0,8.131e-05,2]
[355649884,1741435832275,-500.0,8.192e-05,2]
[355649885,1741435832285,-500.0,8.192e-05,2]
[355649886,1741435832294,-5100.0,8.209e-05,2]
[355649887,1741435832304,-8573.91310142,8.217e-05,2]
[355649888,1741435832314,-192.66843528,8.218e-05,2]
[355649889,1741435832323,-500.0,8.218e-05,2]
[355649890,1741435832333,-500.0,8.218e-05,2]
[355649891,1741435832343,-550.24302628,8.218e-05,2]
[355649892,1741435832352,-1594.25,8.218e-05,2]
[355649893,1741435832362,-500.0,8.219e-05,2]
[355649894,1741435832372,-500.0,8.219e-05,2]
[355649895,1741435832381,-500.0,8.219e-05,2]
[355649896,1741435832391,-500.0,8.219e-05,2]
[355649897,1741435832400,-160.40325274,8.219e-05,2]
[355649900,1741435832420,-254.1366388,8.219e-05,2]
[355649907,1741435837722,-85.46010846,8.219e-05,2]
[355649908,1741435837736,-344.30978659,8.219e-05,2]
[355649909,1741435837831,-206.33021341,8.219e-05,2]
[355649910,1741435837841,-507.56725919,8.219e-05,2]
[355649911,1741435837851,-570.17,8.219e-05,2]
[355649912,1741435837861,-505.69340922,8.219e-05,2]
[355649913,1741435837871,-504.10744002,8.219e-05,2]
[355649914,1741435837880,-500.0,8.219e-05,2]
[355649915,1741435837889,-500.0,8.219e-05,2]
[355649916,1741435837899,-21.57970897,8.219e-05,2]
[355650127,1741435840049,-423.17599617,8.219e-05,2]
[355650144,1741435840207,-121.70429486,8.219e-05,2]
[355650147,1741435840218,-500.0,8.219e-05,2]
[355650149,1741435840227,-500.0,8.219e-05,2]
[355650151,1741435840236,-500.0,8.219e-05,2]
[355650153,1741435840246,-500.0,8.219e-05,2]
[355650155,1741435840255,-500.0,8.219e-05,2]
[355650156,1741435840264,-500.0,8.219e-05,2]
[355650158,1741435840273,-623.18,8.219e-05,2]
[355650160,1741435840283,-500.0,8.219e-05,2]
[355650162,1741435840292,-650.63,8.219e-05,2]
[355650164,1741435840301,-500.0,8.219e-05,2]
[355650166,1741435840310,-500.0,8.219e-05,2]
[355650168,1741435840320,-500.0,8.219e-05,2]
[355650170,1741435840329,-500.0,8.219e-05,2]
[355650171,1741435840339,-559.68,8.219e-05,2]
[355650172,1741435840349,-500.0,8.219e-05,2]
[355650173,1741435840358,-646.16,8.219e-05,2]
[355650174,1741435840367,-500.0,8.219e-05,2]
[355650175,1741435840376,-500.0,8.219e-05,2]
[355650176,1741435840386,-338.51265245,8.219e-05,2]
[355650177,1741435840395,-457.25760468,8.219e-05,2]
[355650178,1741435840405,-500.0,8.219e-05,2]
[355650180,1741435840416,-500.0,8.219e-05,2]
[355650182,1741435840426,-591.41,8.219e-05,2]
[355650184,1741435840436,-753.12,8.219e-05,2]
[355650186,1741435840445,-583.14,8.219e-05,2]
[355650188,1741435840458,-500.0,8.219e-05,2]
[355650190,1741435840469,-500.0,8.219e-05,2]
[355650192,1741435840480,-570.37,8.219e-05,2]
[355650194,1741435840491,-500.0,8.219e-05,2]
[355650196,1741435840501,-741.38,8.219e-05,2]
[355650198,1741435840511,-557.05,8.219e-05,2]
[355650200,1741435840520,-268.91287508,8.219e-05,2]
[355650202,1741435840530,-962.29,8.219e-05,2]
[355650204,1741435840539,-601.93,8.219e-05,2]
[355650206,1741435840548,-661.95,8.219e-05,2]
[355650208,1741435840557,-655.01,8.219e-05,2]
[355650210,1741435840566,-500.0,8.219e-05,2]
[355650239,1741435840841,-735.56,8.219e-05,2]
[355650242,1741435840851,-430.209266,8.219e-05,2]
[355650244,1741435840861,-510.96302362,8.219e-05,2]
[355650245,1741435840871,-417.90003173,8.219e-05,2]
[355650248,1741435840881,-500.0,8.219e-05,2]
[355650250,1741435840891,-500.0,8.219e-05,2]
[355650251,1741435840900,-500.0,8.219e-05,2]
[355650253,1741435840909,-500.0,8.219e-05,2]
[355650255,1741435840918,-500.0,8.219e-05,2]
[355650257,1741435840928,-500.0,8.219e-05,2]
[355650259,1741435840937,-1125.51,8.219e-05,2]
[355650261,1741435840946,-723.74,8.219e-05,2]
[355650263,1741435840956,-520.06,8.219e-05,2]
[355650265,1741435840966,-500.0,8.219e-05,2]
[355650267,1741435840975,-833.22,8.219e-05,2]
[355650269,1741435840984,-500.0,8.219e-05,2]
[355650272,1741435840994,-601.0,8.219e-05,2]
[355650274,1741435841004,-500.0,8.219e-05,2]
[355650276,1741435841015,-500.0,8.219e-05,2]
[355650278,1741435841024,-500.0,8.219e-05,2]
[355650280,1741435841033,-500.0,8.219e-05,2]
[355650282,1741435841043,-500.0,8.219e-05,2]
[355650284,1741435841051,-500.0,8.219e-05,2]
[355650286,1741435841061,-684.17,8.219e-05,2]
[355650288,1741435841070,-909.27,8.219e-05,2]
[355650289,1741435841079,-674.778561,8.219e-05,2]
[355650291,1741435841089,-500.0,8.219e-05,2]
[355650294,1741435841098,-500.0,8.219e-05,2]
[355650296,1741435841108,-500.0,8.219e-05,2]
[355650298,1741435841118,-1657.18,8.219e-05,2]
[355650300,1741435841127,-500.0,8.219e-05,2]
[355650302,1741435841137,-500.0,8.219e-05,2]
[355650304,1741435841146,-594.24,8.219e-05,2]
[355650306,1741435841156,-647.0,8.219e-05,2]
[355650308,1741435841165,-542.61,8.219e-05,2]
[355650310,1741435841175,-500.0,8.219e-05,2]
[355650312,1741435841184,-500.0,8.219e-05,2]
[355650314,1741435841194,-504.25,8.219e-05,2]
[355650316,1741435841203,-500.0,8.219e-05,2]
[355650318,1741435841213,-781.17,8.219e-05,2]
[355650320,1741435841222,-500.0,8.219e-05,2]
[355650322,1741435841231,-500.0,8.219e-05,2]
[355650324,1741435841241,-500.0,8.219e-05,2]
[355650326,1741435841250,-657.47,8.219e-05,2]
[355650328,1741435841264,-522.26,8.219e-05,2]
[355650330,1741435841274,-795.49,8.219e-05,2]
[355650332,1741435841284,-629.33,8.219e-05,2]
[355650334,1741435841293,-500.0,8.219e-05,2]
[355650337,1741435841304,-576.17,8.219e-05,2]
[355650339,1741435841314,-500.0,8.219e-05,2]
[355650340,1741435841324,-542.17,8.219e-05,2]
[355650343,1741435841336,-546.44,8.219e-05,2]
[355650345,1741435841346,-500.0,8.219e-05,2]
[355650347,1741435841357,-702.02,8.219e-05,2]
[355650349,1741435841367,-500.0,8.219e-05,2]
[355650351,1741435841377,-500.0,8.219e-05,2]
[355650353,1741435841388,-1084.83,8.219e-05,2]
[355650355,1741435841398,-530.9,8.219e-05,2]
[355650357,1741435841408,-500.0,8.219e-05,2]
[355650359,1741435841418,-1026.1,8.219e-05,2]
[355650361,1741435841429,-235.60467202,8.219e-05,2]
[355650363,1741435841439,-500.0,8.219e-05,2]
[355650365,1741435841450,-591.23,8.219e-05,2]
[355650367,1741435841460,-373.90528085,8.219e-05,2]
[355650370,1741435841471,-500.0,8.219e-05,2]
[355650371,1741435841482,-500.0,8.219e-05,2]
[355650374,1741435841493,-500.0,8.219e-05,2]
[355650376,1741435841504,-728.6,8.219e-05,2]
[355650378,1741435841513,-519.71,8.219e-05,2]
[355650380,1741435841523,-917.06,8.219e-05,2]
[355650382,1741435841536,-694.32,8.219e-05,2]
[355650384,1741435841545,-925.57,8.219e-05,2]
[355650386,1741435841555,-500.0,8.219e-05,2]
[355650388,1741435841565,-673.22,8.219e-05,2]
[355650389,1741435841575,-602.25,8.219e-05,2]
[355650390,1741435841585,-816.93,8.219e-05,2]
[355650391,1741435841595,-700.58,8.219e-05,2]
[355650393,1741435841606,-500.0,8.219e-05,2]
[355650394,1741435841616,-500.0,8.219e-05,2]
[355650395,1741435841626,-500.0,8.219e-05,2]
[355650396,1741435841636,-500.0,8.219e-05,2]
[355650397,1741435841645,-500.0,8.219e-05,2]
[355650398,1741435841655,-500.0,8.219e-05,2]
[355650399,1741435841664,-803.78,8.219e-05,2]